bitfinex/quotes_SOLUSD_20251226
["timestamp","ask_amount","ask_price","bid_price","bid_amount"]
[1766714947241,7.81711709,121.19,121.16,0.66]
[1766714947445,2.26215856,121.19,121.16,0.66]
[1766714949949,10.5136915,121.19,121.16,0.66]
[1766714950948,10.62298364,121.2,121.16,0.66]
[1766714951148,5.55553523,121.19,121.16,0.66]
[1766714953356,5.55553523,121.19,121.16,10.51558806]
[1766714953525,15.08,121.24,121.18,2.26215856]
[1766714953848,8.2459307,121.28,121.23,2.26215856]
[1766714954047,24.03482331,121.29,121.24,0.63]
[1766714954238,0.71,121.28,121.24,0.63]
[1766714954748,0.71,121.27,121.24,0.63]
[1766714955147,2.97215856,121.27,121.23,0.63]
[1766714955321,0.71,121.24,121.2,2.89215856]
[1766714955528,0.71,121.23,121.2,8.88068456]
[1766714955728,15.08,121.26,121.2,0.63]
[1766714955944,0.71,121.23,121.2,0.63]
[1766714956539,0.71,121.23,121.19,11.06767296]
[1766714958450,2.97215856,121.24,121.2,0.63]
[1766714958650,0.71,121.24,121.2,0.63]
[1766714958855,0.71,121.26,121.2,2.26215856]
[1766714959033,0.71,121.25,121.21,0.63]
[1766714959232,0.71,121.25,121.21,2.89215856]
[1766714959447,0.71,121.25,121.22,0.63]
[1766714961934,0.71,121.25,121.21,11.14193654]
[1766714962357,0.71,121.25,121.21,2.89215856]
[1766714963346,0.71,121.25,121.21,11.14230127]
[1766714963744,0.71,121.25,121.21,8.88014271]
[1766714964045,0.71,121.25,121.21,0.63]
[1766714964253,0.71,121.25,121.21,2.89215856]
[1766714964638,2.97215856,121.25,121.21,0.63]
[1766714965460,0.71,121.25,121.22,0.63]
[1766714968066,0.71,121.25,121.22,8.87941946]
[1766714968562,8.24750094,121.25,121.2,8.25055618]
[1766714968750,8.24750094,121.25,121.19,93.7664377]
[1766714968751,0.71,121.24,121.21,0.63]
[1766714968954,0.71,121.24,121.21,8.88013649]
[1766714970064,10.50931478,121.26,121.21,11.14229505]
[1766714970248,10.50931478,121.26,121.22,0.63]
[1766714970568,0.71,121.25,121.22,0.63]
[1766714971672,2.26215856,121.26,121.22,0.63]
[1766714972157,0.71,121.26,121.22,0.63]
[1766714972356,2.97215856,121.26,121.22,0.63]
[1766714972761,10.50936271,121.26,121.22,0.63]
[1766714972966,0.71,121.25,121.22,0.63]
[1766714973272,10.50936271,121.26,121.22,0.63]
[1766714973472,8.24720415,121.26,121.22,0.63]
[1766714973664,8.95720415,121.26,121.22,0.63]
[1766714974062,0.71,121.26,121.22,8.24933784]
[1766714974366,0.71,121.26,121.23,0.63]
[1766714975469,2.97215856,121.26,121.23,0.63]
[1766714975676,24.0363023,121.27,121.23,0.63]
[1766714975971,26.29846086,121.27,121.23,0.63]
[1766714976167,0.71,121.26,121.23,0.63]
[1766714977055,25.58846086,121.27,121.24,0.63]
[1766714977056,0.71,121.27,121.24,0.63]
[1766714977472,27.75983152,121.29,121.25,0.63]
[1766714977473,0.71,121.28,121.25,0.63]
[1766714977770,15.06,121.29,121.25,2.89215856]
[1766714977973,0.71,121.27,121.24,0.63]
[1766714979579,0.71,121.28,121.25,2.89215856]
[1766714979773,18.68103911,121.31,121.25,2.26215856]
[1766714979974,0.71,121.31,121.27,0.63]
[1766714980277,2.97215856,121.31,121.27,0.63]
[1766714980676,0.71,121.3,121.27,0.63]
[1766714981175,10.50576054,121.31,121.25,20.94701663]
[1766714981380,0.71,121.29,121.25,20.94701663]
[1766714981578,2.26215856,121.29,121.24,25.57008101]
[1766714981877,0.68,121.28,121.25,10.5093903]
[1766714982080,0.68,121.31,121.26,2.26215856]
[1766714982288,0.68,121.31,121.27,8.24588554]
[1766714982581,0.68,121.31,121.28,2.26215856]
[1766714982977,0.68,121.32,121.28,10.50732826]
[1766714983168,15.16,121.33,121.29,2.26215856]
[1766714983479,0.68,121.32,121.28,8.2451697]
[1766714983680,0.68,121.32,121.27,20.94571946]
[1766714983975,0.68,121.31,121.27,18.6835609]
[1766714984358,0.68,121.31,121.27,20.94571946]
[1766714984973,0.68,121.31,121.27,18.6835609]
[1766714985157,0.68,121.31,121.27,20.94571946]
[1766714985784,0.68,121.31,121.25,20.61798944]
[1766714985785,0.68,121.3,121.26,8.24653504]
[1766714986075,0.68,121.29,121.25,8.24728034]
[1766714986275,2.94215856,121.29,121.25,70.94728034]
[1766714986454,0.68,121.28,121.25,70.94728034]
[1766714987182,0.68,121.28,121.24,62.7]
[1766714988057,2.94215856,121.28,121.24,70.94807676]
[1766714988271,0.68,121.29,121.25,10.5093196]
[1766714988682,0.68,121.31,121.27,2.26215856]
[1766714988859,0.68,121.31,121.28,2.26215856]
[1766714989067,0.78,121.33,121.3,2.26215856]
[1766714989477,0.78,121.33,121.29,8.24470277]
[1766714989685,3.04215856,121.33,121.28,20.94501306]
[1766714989883,0.68,121.32,121.28,20.94501306]
[1766714990482,0.68,121.31,121.27,2.26215856]
[1766714990705,8.3420938,121.33,121.25,10.50933253]
[1766714990706,0.68,121.3,121.25,10.50933253]
[1766714991288,0.68,121.28,121.24,2.26215856]
[1766714991668,10.50632308,121.3,121.2,58.57617898]
[1766714991669,10.50632308,121.3,121.25,2.26215856]
[1766714991985,0.68,121.29,121.25,2.26215856]
[1766714992387,0.68,121.29,121.24,8.24810293]
[1766714992569,0.68,121.29,121.24,10.51026149]
[1766714993268,0.68,121.29,121.24,8.24810293]
[1766714993474,0.68,121.29,121.24,10.51026149]
[1766714995085,0.68,121.29,121.25,2.26215856]
[1766714995390,0.68,121.3,121.25,2.26215856]
[1766714995987,0.68,121.29,121.25,64.96215856]
[1766714996193,0.68,121.29,121.26,8.24674253]
[1766714996366,0.68,121.3,121.26,10.50890109]
[1766714997166,0.68,121.3,121.26,8.24674253]
[1766714997592,0.68,121.3,121.26,10.50890109]
[1766714998896,0.68,121.32,121.27,2.26215856]
[1766714999565,0.68,121.32,121.28,2.26215856]
[1766715000571,0.68,121.32,121.26,102.00127183]
[1766715000897,0.68,121.31,121.27,2.26215856]
[1766715001594,0.68,121.31,121.26,81.38441549]
[1766715001790,0.68,121.31,121.27,2.26215856]
[1766715002002,0.68,121.31,121.27,11.7724614]
[1766715002575,0.68,121.31,121.27,8.24543142]
[1766715002798,0.68,121.31,121.27,11.7724614]
[1766715002992,0.68,121.31,121.27,8.24543142]
[1766715004108,0.68,121.31,121.27,11.7724614]
[1766715004704,0.68,121.29,121.26,10.43767296]
[1766715004899,0.68,121.31,121.27,3.52702998]
[1766715006098,3.62702998,121.33,121.27,3.52702998]
[1766715006288,6.21216236,121.32,121.28,3.52702998]
[1766715006489,0.68,121.32,121.28,3.52702998]
[1766715006790,0.68,121.32,121.28,11.77180964]
[1766715006986,0.68,121.32,121.28,8.24477966]
[1766715008077,4.20702998,121.32,121.28,8.24477966]
[1766715008277,0.68,121.31,121.28,8.24477966]
[1766715008495,0.68,121.3,121.27,8.24589088]
[1766715011002,0.68,121.3,121.2,71.04225208]
[1766715011003,8.24413571,121.3,121.2,71.04225208]
[1766715011182,4.20702998,121.25,121.21,8.25014437]
[1766715011377,4.20702998,121.25,121.2,8.25072417]
[1766715011593,4.20702998,121.24,121.2,8.25072417]
[1766715012795,0.68,121.24,121.2,8.25072417]
[1766715013302,0.68,121.24,121.2,11.77775415]
[1766715014006,0.68,121.24,121.2,8.25072417]
[1766715015300,4.20702998,121.24,121.2,8.25072417]
[1766715015492,3.52702998,121.24,121.2,8.25072417]
[1766715015699,4.21702998,121.24,121.2,8.25072417]
[1766715015899,0.69,121.23,121.2,8.25072417]
[1766715017115,3.52702998,121.23,121.19,8.25147648]
[1766715017315,0.69,121.22,121.18,8.25175499]
[1766715017527,0.69,121.22,121.18,70.95175499]
[1766715017827,0.69,121.22,121.19,8.2512916]
[1766715019584,0.69,121.22,121.18,70.95198316]
[1766715020303,0.69,121.22,121.18,74.47901314]
[1766715022130,0.69,121.25,121.19,8.25117746]
[1766715022288,0.69,121.25,121.2,3.52702998]
[1766715022482,4.21702998,121.25,121.19,70.95117746]
[1766715022682,0.69,121.24,121.2,3.52702998]
[1766715023294,0.69,121.24,121.2,11.77761254]
[1766715025113,0.69,121.28,121.23,13.96470294]
[1766715025615,0.69,121.27,121.23,13.96470294]
[1766715026313,0.69,121.27,121.23,22.21306934]
[1766715026702,0.69,121.27,121.23,18.68603936]
[1766715027002,0.69,121.27,121.23,22.21306934]
[1766715027317,31.04706022,121.31,121.26,3.52702998]
[1766715027318,0.69,121.31,121.26,3.52702998]
[1766715027515,3.52702998,121.31,121.23,54.36799762]
[1766715027716,4.21702998,121.3,121.25,3.52702998]
[1766715027921,0.69,121.3,121.25,3.52702998]
[1766715028275,0.69,121.29,121.25,3.52702998]
[1766715029439,0.69,121.28,121.24,11.77485217]
[1766715029994,0.69,121.28,121.24,8.24782219]
[1766715030496,0.69,121.28,121.24,11.77485217]
[1766715032009,8.93542573,121.28,121.23,11.77567464]
[1766715032213,0.69,121.27,121.23,11.77567464]
[1766715032829,0.69,121.27,121.22,10.43767296]
[1766715032830,0.69,121.26,121.22,62.7]
[1766715033009,0.69,121.26,121.21,11.7771584]
[1766715035430,0.69,121.26,121.22,3.52702998]
[1766715035618,0.69,121.26,121.21,11.7771584]
[1766715036837,0.69,121.26,121.21,8.25012842]
[1766715037008,0.69,121.26,121.21,11.7771584]
[1766715040236,0.69,121.25,121.21,11.7771584]
[1766715041535,0.69,121.25,121.21,8.25012842]
[1766715041840,0.69,121.25,121.21,11.7771584]
[1766715042337,0.69,121.25,121.21,8.25012842]
[1766715044233,0.68,121.24,121.21,8.25012842]
[1766715046047,0.68,121.24,121.2,84.91523635]
[1766715046847,0.65,121.26,121.21,3.52702998]
[1766715047645,0.65,121.26,121.22,8.24946378]
[1766715052651,4.17702998,121.26,121.22,8.24946378]
[1766715052855,0.65,121.25,121.22,8.24946378]
[1766715055162,0.65,121.25,121.21,70.94994241]
[1766715055333,0.65,121.25,121.21,62.7]
[1766715055540,0.65,121.24,121.21,62.7]
[1766715056255,0.65,121.26,121.21,74.47714013]
[1766715058965,0.65,121.26,121.22,3.52702998]
[1766715060144,0.65,121.26,121.23,11.77581328]
[1766715060557,0.65,121.26,121.23,74.47581328]
[1766715060956,0.65,121.29,121.24,3.52702998]
[1766715061169,15.18174074,121.31,121.23,39.30841452]
[1766715061170,0.65,121.31,121.27,3.52702998]
[1766715061351,5.5479536,121.3,121.27,3.52702998]
[1766715061557,0.65,121.31,121.27,3.52702998]
[1766715062854,0.65,121.31,121.27,11.77290481]
[1766715063057,0.65,121.3,121.26,13.96470294]
[1766715063256,0.65,121.3,121.26,10.43767296]
[1766715063558,0.65,121.3,121.27,8.24603683]
[1766715063764,0.65,121.3,121.27,11.77306681]
[1766715063965,0.65,121.3,121.27,10.50333395]
[1766715064266,8.24322032,121.32,121.25,8.24690611]
[1766715064565,8.24322032,121.32,121.25,8.24716333]
[1766715064566,0.65,121.28,121.25,8.24716333]
[1766715064772,0.65,121.32,121.27,12.69497008]
[1766715064947,6.19512323,121.31,121.27,12.69497008]
[1766715065269,0.65,121.31,121.27,12.69497008]
[1766715066372,0.65,121.31,121.27,20.94060998]
[1766715066551,0.65,121.31,121.27,18.68331286]
[1766715066755,0.65,121.31,121.27,20.94060998]
[1766715068569,0.65,121.31,121.27,18.68331286]
[1766715068742,0.65,121.31,121.27,20.94060998]
[1766715069072,0.65,121.31,121.27,18.68331286]
[1766715069249,0.65,121.31,121.27,20.94060998]
[1766715072170,0.65,121.31,121.27,83.64060998]
[1766715073299,0.65,121.31,121.27,81.38331286]
[1766715073577,0.65,121.31,121.27,83.64060998]
[1766715074473,0.65,121.31,121.27,81.38331286]
[1766715074679,0.65,121.31,121.27,83.64060998]
[1766715076278,0.65,121.31,121.27,73.13767296]
[1766715076461,2.25729712,121.31,121.27,73.13767296]
[1766715076659,0.66,121.3,121.27,73.13767296]
[1766715076957,0.66,121.28,121.25,70.94718856]
[1766715077166,0.66,121.28,121.25,8.24718856]
[1766715079474,0.66,121.28,121.25,10.50448568]
[1766715079790,0.66,121.28,121.25,8.24718856]
[1766715079965,0.66,121.28,121.25,10.50448568]
[1766715080965,2.25729712,121.3,121.26,2.25729712]
[1766715080966,0.66,121.3,121.26,2.25729712]
[1766715081168,0.66,121.32,121.27,2.25729712]
[1766715081364,6.19950414,121.31,121.27,2.25729712]
[1766715081588,0.66,121.31,121.27,2.25729712]
[1766715082291,0.66,121.31,121.27,10.50293074]
[1766715083193,0.66,121.31,121.27,8.24563362]
[1766715083395,0.66,121.31,121.27,10.50293074]
[1766715086774,0.66,121.31,121.27,73.20293074]
[1766715086974,0.66,121.31,121.27,70.94563362]
[1766715088702,0.66,121.31,121.27,73.20293074]
[1766715089297,0.66,121.31,121.27,70.94563362]
[1766715089682,0.1,121.33,121.3,12.69497008]
[1766715090095,4.91273868,121.34,121.31,2.25729712]
[1766715091298,4.91273868,121.34,121.31,10.50008627]
[1766715091502,5.58273868,121.34,121.31,10.50008627]
[1766715092092,5.58273868,121.34,121.31,8.24278915]
[1766715097910,0.1,121.35,121.31,28.8511479]
[1766715098108,5.18806182,121.36,121.31,28.8511479]
[1766715098322,0.67,121.35,121.31,28.8511479]
[1766715098617,0.67,121.35,121.31,31.10844502]
[1766715098816,0.67,121.35,121.31,28.8511479]
[1766715099002,0.67,121.35,121.31,31.10844502]
[1766715101917,0.67,121.35,121.31,28.8511479]
[1766715102102,0.67,121.35,121.31,10.50008627]
[1766715102420,0.67,121.34,121.31,8.24278915]
[1766715102989,0.67,121.35,121.32,2.25729712]
[1766715103910,0.67,121.35,121.32,10.49947381]
[1766715104791,0.67,121.35,121.32,8.24217669]
[1766715105094,0.67,121.35,121.32,10.49947381]
[1766715105794,5.18806182,121.36,121.32,28.84883676]
[1766715105988,5.89806182,121.36,121.33,2.25729712]
[1766715106910,5.18806182,121.36,121.33,2.25729712]
[1766715107085,5.18806182,121.36,121.34,2.25729712]
[1766715107410,5.18806182,121.36,121.33,2.25729712]
[1766715107617,5.89806182,121.36,121.33,2.25729712]
[1766715107822,5.89806182,121.36,121.32,85.56395719]
[1766715108113,5.89806182,121.36,121.32,93.80662121]
[1766715108289,5.89806182,121.36,121.32,73.19996114]
[1766715108290,0.71,121.35,121.32,73.19996114]
[1766715109203,0.71,121.35,121.32,70.94266402]
[1766715109614,0.71,121.35,121.32,62.7]
[1766715110411,0.71,121.35,121.31,73.20042333]
[1766715110915,0.71,121.35,121.32,8.2421359]
[1766715111214,0.71,121.35,121.32,10.49943302]
[1766715112513,0.71,121.35,121.31,73.20041748]
[1766715113217,0.71,121.35,121.31,70.94312036]
[1766715113597,0.71,121.35,121.31,62.7]
[1766715113598,0.71,121.33,121.31,62.7]
[1766715113811,0.71,121.32,121.3,62.7]
[1766715114003,0.71,121.32,121.29,70.94460383]
[1766715114392,0.71,121.32,121.29,8.24460383]
[1766715116611,0.71,121.32,121.29,10.50190095]
[1766715117928,0.71,121.32,121.29,8.24460383]
[1766715118223,0.71,121.32,121.29,10.50190095]
[1766715119224,0.71,121.32,121.29,8.24460383]
[1766715120502,0.71,121.32,121.28,81.38293957]
[1766715120723,0.71,121.31,121.28,83.64023669]
[1766715121024,8.24090887,121.35,121.29,0.68]
[1766715121219,2.25729712,121.33,121.29,62.7]
[1766715121527,2.25729712,121.31,121.27,8.92577481]
[1766715121704,2.25729712,121.31,121.27,71.62577481]
[1766715121906,2.25729712,121.31,121.27,62.7]
[1766715122706,8.24303581,121.32,121.27,70.94601305]
[1766715123220,0.71,121.3,121.27,70.94601305]
[1766715123526,10.50033293,121.32,121.27,70.94601305]
[1766715123527,31.04190946,121.34,121.27,70.94593162]
[1766715123709,0.71,121.3,121.27,62.7]
[1766715123914,0.71,121.3,121.26,71.62644339]
[1766715124113,0.71,121.3,121.26,75.15437672]
[1766715124804,0.71,121.3,121.27,4.20793333]
[1766715125936,0.71,121.3,121.28,8.24538258]
[1766715127619,0.71,121.3,121.27,12.4537132]
[1766715127827,0.71,121.3,121.27,75.1537132]
[1766715128023,0.71,121.3,121.27,71.62577987]
[1766715128812,0.71,121.3,121.27,75.1537132]
[1766715129131,0.71,121.3,121.27,71.62577987]
[1766715129431,0.71,121.3,121.27,74.4737132]
[1766715129605,0.71,121.3,121.27,70.94577987]
[1766715130232,0.71,121.3,121.27,74.4737132]
[1766715132432,0.71,121.3,121.27,70.94577987]
[1766715132730,46.10160703,121.34,121.29,3.52793333]
[1766715132731,0.71,121.33,121.29,3.52793333]
[1766715132935,0.71,121.33,121.3,4.20793333]
[1766715133308,16.95615228,121.36,121.31,3.52793333]
[1766715133520,0.71,121.35,121.31,4.20793333]
[1766715133711,0.71,121.35,121.32,4.19793333]
[1766715133914,0.71,121.35,121.32,0.67]
[1766715134142,5.18806182,121.36,121.33,4.19793333]
[1766715134446,5.83806182,121.36,121.33,4.19793333]
[1766715134609,5.83806182,121.36,121.33,12.43943327]
[1766715135111,1e-08,121.36,121.34,3.52793333]
[1766715135313,1e-08,121.36,121.34,0.67]
[1766715135524,1e-08,121.36,121.34,4.19793333]
[1766715135835,1e-08,121.36,121.34,3.52793333]
[1766715136013,23.39779398,121.4,121.37,3.52793333]
[1766715136014,0.1,121.4,121.37,3.52793333]
[1766715136208,0.75,121.4,121.36,0.67]
[1766715136806,0.65,121.39,121.36,8.23986118]
[1766715137208,0.65,121.39,121.36,12.43779451]
[1766715138504,0.75,121.4,121.36,8.90986118]
[1766715138705,0.75,121.4,121.37,8.90919028]
[1766715139132,0.75,121.4,121.36,8.23975246]
[1766715139326,0.65,121.39,121.36,8.23975246]
[1766715139530,0.65,121.39,121.36,12.43768579]
[1766715139730,0.1,121.4,121.37,11.76704173]
[1766715139934,0.75,121.4,121.37,11.76704173]
[1766715140637,0.75,121.4,121.37,8.2391084]
[1766715141114,0.1,121.4,121.37,0.67]
[1766715141314,1e-08,121.4,121.39,3.52793333]
[1766715141519,5.3212043,121.43,121.4,0.67]
[1766715142114,0.65,121.42,121.39,11.10767296]
[1766715142314,0.65,121.41,121.36,33.03774875]
[1766715143243,5.9712043,121.43,121.39,3.52793333]
[1766715143435,5.9712043,121.43,121.41,3.52793333]
[1766715143935,5.3212043,121.43,121.41,3.52793333]
[1766715144325,5.9712043,121.43,121.4,4.19793333]
[1766715144514,0.65,121.42,121.38,37.91419584]
[1766715144734,0.65,121.42,121.38,11.10767296]
[1766715144941,0.65,121.41,121.37,3.52793333]
[1766715145126,0.65,121.4,121.36,11.76783104]
[1766715145642,0.65,121.4,121.37,3.52793333]
[1766715146440,0.65,121.4,121.36,8.90989771]
[1766715146736,0.65,121.4,121.37,3.52793333]
[1766715147121,0.65,121.4,121.36,12.43783104]
[1766715147725,0.65,121.4,121.35,10.43767296]
[1766715147924,0.65,121.39,121.35,62.7]
[1766715148238,5.3212043,121.43,121.35,74.46835943]
[1766715148239,0.65,121.38,121.35,74.46835943]
[1766715148436,0.65,121.38,121.36,8.23993625]
[1766715150337,0.65,121.4,121.36,8.23993625]
[1766715150552,0.65,121.4,121.36,11.76786958]
[1766715150848,0.65,121.4,121.36,8.23993625]
[1766715151257,0.66,121.38,121.35,8.91044629]
[1766715151422,0.66,121.39,121.35,12.43837962]
[1766715152139,0.66,121.39,121.35,8.91044629]
[1766715152344,0.66,121.39,121.35,12.43837962]
[1766715153076,5.3212043,121.43,121.35,32.36994533]
[1766715153359,0.66,121.42,121.38,10.43767296]
[1766715153653,5.3212043,121.43,121.38,10.43767296]
[1766715153654,5.3212043,121.43,121.4,3.52793333]
[1766715153840,5.3212043,121.43,121.4,0.68]
[1766715154551,5.3212043,121.43,121.4,4.20793333]
[1766715155260,5.3212043,121.43,121.41,8.23655382]
[1766715156455,0.66,121.48,121.43,0.68]
[1766715156632,0.66,121.48,121.44,0.68]
[1766715157166,0.66,121.46,121.42,0.68]
[1766715157327,0.66,121.46,121.42,8.91564158]
[1766715157732,3.52793333,121.46,121.41,10.43767296]
[1766715157952,4.18793333,121.44,121.4,8.91700351]
[1766715158329,3.52793333,121.44,121.4,8.91700351]
[1766715158546,3.52793333,121.43,121.39,8.23783157]
[1766715158753,0.66,121.42,121.39,8.23783157]
[1766715159448,0.66,121.45,121.4,3.52793333]
[1766715159626,0.66,121.45,121.41,0.68]
[1766715160030,4.18793333,121.47,121.42,0.68]
[1766715160254,4.18793333,121.47,121.42,11.11767296]
[1766715161032,0.66,121.47,121.42,11.11767296]
[1766715161232,0.66,121.46,121.42,19.35290775]
[1766715161954,4.18793333,121.46,121.42,19.35290775]
[1766715162144,0.66,121.46,121.42,19.35290775]
[1766715163544,0.66,121.45,121.42,18.67290775]
[1766715164940,0.68,121.47,121.43,4.22793333]
[1766715165145,3.52793333,121.48,121.44,8.23444413]
[1766715165444,4.30793333,121.49,121.45,0.7]
[1766715165950,12.53909267,121.49,121.45,0.7]
[1766715166151,0.68,121.48,121.44,71.63444413]
[1766715167665,0.1,121.49,121.45,0.7]
[1766715167842,0.78,121.49,121.44,62.7]
[1766715168041,0.78,121.49,121.44,70.93424054]
[1766715168242,4.30793333,121.49,121.45,0.7]
[1766715168462,3.52793333,121.48,121.45,0.7]
[1766715168666,12.53914241,121.49,121.45,0.7]
[1766715169265,0.65,121.48,121.44,70.93424054]
[1766715169572,0.65,121.48,121.45,8.23338673]
[1766715170954,3.52793333,121.48,121.44,62.7]
[1766715171152,3.52793333,121.47,121.44,62.7]
[1766715171360,0.65,121.46,121.44,62.7]
[1766715171558,4.17793333,121.46,121.42,8.90562668]
[1766715171969,0.65,121.45,121.41,8.23628018]
[1766715172272,0.65,121.47,121.43,8.23476665]
[1766715173171,0.65,121.47,121.43,63.37]
[1766715173470,0.65,121.46,121.43,62.7]
[1766715173965,0.65,121.46,121.42,82.04339556]
[1766715174175,0.65,121.48,121.44,0.67]
[1766715174376,0.65,121.48,121.44,66.89793333]
[1766715174550,0.65,121.48,121.44,63.37]
[1766715175060,0.65,121.47,121.44,62.7]
[1766715175265,0.65,121.46,121.44,62.7]
[1766715175663,0.65,121.45,121.44,62.7]
[1766715175861,8.33148908,121.49,121.42,66.22793333]
[1766715176069,0.65,121.48,121.43,4.19793333]
[1766715176267,0.65,121.48,121.44,33.0186143]
[1766715177063,0.75,121.49,121.45,0.67]
[1766715177274,0.75,121.49,121.46,8.23316318]
[1766715179765,4.27793333,121.49,121.45,8.2337861]
[1766715180273,3.52793333,121.48,121.43,15.04]
[1766715180460,0.65,121.47,121.44,8.23404496]
[1766715180661,8.33139994,121.49,121.45,8.23382817]
[1766715180662,0.75,121.49,121.45,8.23382817]
[1766715180980,0.1,121.49,121.46,0.67]
[1766715181384,1e-08,121.49,121.48,0.67]
[1766715181772,0.65,121.54,121.48,4.19793333]
[1766715181979,0.65,121.53,121.48,0.67]
[1766715182483,3.52793333,121.53,121.48,0.67]
[1766715182688,0.65,121.51,121.47,8.23248538]
[1766715183181,28.79519159,121.55,121.46,4.19793333]
[1766715183182,0.65,121.54,121.46,8.23290671]
[1766715183394,0.65,121.5,121.46,8.23290671]
[1766715183562,0.65,121.5,121.46,33.01374799]
[1766715183759,4.17793333,121.52,121.47,0.67]
[1766715183958,3.52793333,121.52,121.47,0.67]
[1766715184188,0.65,121.51,121.47,0.67]
[1766715184770,0.65,121.48,121.45,18.67149243]
[1766715184974,0.65,121.52,121.46,0.67]
[1766715185175,0.65,121.52,121.48,0.67]
[1766715185581,0.65,121.52,121.48,11.75928464]
[1766715185781,0.65,121.54,121.49,4.19793333]
[1766715185968,0.65,121.55,121.49,0.67]
[1766715186161,0.65,121.53,121.49,0.67]
[1766715186783,0.65,121.53,121.49,2.91918533]
[1766715187576,0.65,121.55,121.51,0.67]
[1766715187891,0.65,121.55,121.5,8.90045267]
[1766715188067,0.65,121.55,121.51,2.24918533]
[1766715188273,0.65,121.55,121.51,2.91918533]
[1766715188677,0.65,121.55,121.51,0.67]
[1766715189469,0.65,121.55,121.52,8.22909809]
[1766715190071,0.65,121.57,121.53,0.67]
[1766715190494,0.1,121.58,121.55,0.67]
[1766715190685,2.99918533,121.58,121.54,0.67]
[1766715190885,2.89918533,121.57,121.53,62.7]
[1766715191280,0.1,121.58,121.54,0.67]
[1766715191595,1e-08,121.58,121.56,0.67]
[1766715192100,0.65,121.6,121.57,2.24918533]
[1766715192282,0.65,121.6,121.57,0.67]
[1766715192991,5.34439523,121.62,121.58,0.67]
[1766715193180,5.34439523,121.62,121.55,28.79473467]
[1766715193181,0.65,121.59,121.55,28.79473467]
[1766715193382,0.65,121.61,121.55,11.14625238]
[1766715193587,0.65,121.6,121.56,2.24918533]
[1766715194303,0.65,121.6,121.57,2.24918533]
[1766715194503,0.65,121.6,121.57,2.93918533]
[1766715195001,0.65,121.6,121.57,11.16443079]
[1766715195211,0.67,121.61,121.57,11.16443079]
[1766715195594,0.67,121.61,121.57,8.91524546]
[1766715195784,5.36439523,121.62,121.57,29.47952941]
[1766715196112,5.36439523,121.62,121.58,2.24918533]
[1766715196406,0.67,121.61,121.57,29.47952941]
[1766715196599,0.67,121.61,121.58,2.24918533]
[1766715197180,0.67,121.61,121.56,0.69]
[1766715197381,0.67,121.61,121.58,8.22496382]
[1766715197588,4.69439523,121.62,121.58,8.91496382]
[1766715197783,4.69439523,121.62,121.59,0.69]
[1766715197984,2.91918533,121.61,121.57,2.93918533]
[1766715198300,4.69439523,121.62,121.59,2.93918533]
[1766715198502,8.21827744,121.68,121.61,2.24918533]
[1766715198703,2.24918533,121.66,121.61,2.24918533]
[1766715198895,2.24918533,121.65,121.6,2.93918533]
[1766715199292,2.24918533,121.65,121.61,8.22300797]
[1766715199496,18.65671986,121.67,121.61,8.22300797]
[1766715199695,2.24918533,121.65,121.61,8.22300797]
[1766715200190,0.67,121.66,121.61,8.22300797]
[1766715200402,0.67,121.7,121.64,2.24918533]
[1766715200601,0.67,121.7,121.66,2.24918533]
[1766715200983,0.67,121.7,121.65,2.93918533]
[1766715201424,0.67,121.72,121.67,2.24918533]
[1766715201586,0.67,121.72,121.68,2.93918533]
[1766715202314,0.67,121.72,121.68,0.69]